bitfinex-derivatives/quotes_SOLF0:USTF0_20240902
["timestamp","ask_amount","ask_price","bid_price","bid_amount"]
[1725287862537,43.36,132.65,132.56,3.7719]
[1725287863048,0.04863407,132.62,132.56,3.7719]
[1725287863249,0.04863407,132.62,132.54,3.7724]
[1725287863543,0.04863407,132.62,132.52,43.36]
[1725287863544,0.05781055,132.59,132.52,43.36]
[1725287863841,0.05781055,132.59,132.55,3.7721]
[1725287864144,0.05781055,132.59,132.54,43.36]
[1725287864345,0.05537392,132.58,132.54,43.36]
[1725287865746,0.05537392,132.58,132.56,3.7718]
[1725287866841,0.05537392,132.58,132.55,3.7721]
[1725287867142,1.3909,132.69,132.56,43.36]
[1725287867342,43.36,132.66,132.52,1.4094]
[1725287867548,43.36,132.66,132.54,43.36]
[1725287867938,3.7705,132.62,132.54,43.36]
[1725287868135,0.05736056,132.61,132.59,0.05482421]
[1725287868339,3.8279659,132.63,132.59,0.05482421]
[1725287868535,0.05581012,132.61,132.59,0.05482421]
[1725287868746,0.05119454,132.61,132.59,0.05482421]
[1725287868937,3.70644139,132.71,132.59,43.41482421]
[1725287869139,3.7685,132.69,132.62,43.36]
[1725287869543,3.74952862,132.7,132.62,47.22341353]
[1725287869750,3.7678,132.71,132.62,47.22341353]
[1725287869941,7.44756468,132.71,132.67,3.7687]
[1725287870243,7.44756468,132.71,132.62,43.36]
[1725287870244,0.04835455,132.68,132.65,0.05664897]
[1725287870448,0.04835455,132.68,132.67,3.7686]
[1725287871247,1.3902,132.77,132.67,43.36]
[1725287871447,3.76159589,132.76,132.67,43.36]
[1725287871749,3.68801808,132.75,132.67,43.36]
[1725287871944,1.3902,132.77,132.67,43.36]
[1725287872143,3.7671,132.74,132.67,43.36]
[1725287872345,0.04948162,132.72,132.69,0.05370943]
[1725287872941,0.04948162,132.72,132.7,3.7679]
[1725287873547,10.53653992,132.86,132.71,43.36]
[1725287873748,46.1693,132.84,132.74,43.36]
[1725287874250,49.91270617,132.84,132.71,43.36]
[1725287874747,0.05676707,132.79,132.76,0.05690175]
[1725287874943,0.05676707,132.79,132.76,0.05786745]
[1725287876940,0.05676707,132.79,132.76,3.82406745]
[1725287877145,0.05676707,132.79,132.76,0.05786745]
[1725287877550,0.05676707,132.79,132.77,3.766]
[1725287878744,0.05676707,132.79,132.76,0.05786745]
[1725287878745,0.05676707,132.79,132.76,3.82406745]
[1725287879541,0.05676707,132.79,132.76,0.05786745]
[1725287880555,0.05676707,132.79,132.77,3.7658]
[1725287880846,0.05676707,132.79,132.76,0.05786745]
[1725287881053,3.82226707,132.79,132.76,0.05786745]
[1725287881248,0.05676707,132.79,132.76,0.05786745]
[1725287882346,3.82236707,132.79,132.76,0.05786745]
[1725287883350,36.22676707,132.79,132.76,0.05786745]
[1725287883950,3.766,132.77,132.76,0.05786745]
[1725287884440,36.17,132.78,132.69,36.17]
[1725287884640,36.17,132.76,132.67,36.17]
[1725287885252,36.17,132.74,132.6,150.66]
[1725287885450,1.3816,132.83,132.66,36.17]
[1725287885650,3.7649,132.81,132.76,3.7661]
[1725287885846,10.53653992,132.93,132.75,36.17]
[1725287886149,0.05124897,132.8,132.77,3.766]
[1725287886352,0.05124897,132.8,132.75,36.17]
[1725287886558,3.83570069,132.82,132.73,36.17]
[1725287886747,0.05327176,132.79,132.76,0.05191445]
[1725287887053,0.05280643,132.79,132.77,3.766]
[1725287887261,0.05280643,132.79,132.77,39.936]
[1725287888151,0.05280643,132.79,132.76,47.19507223]
[1725287888458,0.05280643,132.79,132.76,43.42887223]
[1725287889148,0.05280643,132.79,132.78,3.7658]
[1725287889556,0.05280643,132.79,132.78,47.1458]
[1725287889744,47.11323451,132.91,132.78,43.38]
[1725287889948,2.7996,132.88,132.8,43.38]
[1725287890150,3.7642,132.84,132.8,43.38]
[1725287890547,3.8518688,132.84,132.77,43.38]
[1725287890755,0.05196324,132.82,132.79,0.05520321]
[1725287891055,0.05196324,132.82,132.79,0.05770494]
[1725287891056,0.04851487,132.82,132.79,0.05770494]
[1725287891255,3.78006607,132.82,132.79,0.05770494]
[1725287891557,1.3995,132.81,132.73,43.38]
[1725287891752,2.8069,132.81,132.73,43.38]
[1725287891958,4.2044,132.81,132.73,43.38]
[1725287892557,0.05440498,132.78,132.76,0.05491818]
[1725287893662,0.05440498,132.78,132.76,3.82111818]
[1725287893953,3.7315512,132.82,132.76,0.05491818]
[1725287894155,43.38,132.87,132.76,0.05491818]
[1725287894350,1.18291383,132.86,132.75,43.38]
[1725287894550,3.7652,132.81,132.76,3.7662]
[1725287895051,3.80809335,132.82,132.76,3.7662]
[1725287895052,0.05685045,132.8,132.77,0.05590842]
[1725287895850,0.05685045,132.8,132.78,43.38]
[1725287896356,0.05685045,132.8,132.79,3.7655]
[1725287898363,3.7643,132.84,132.8,3.7652]
[1725287898558,3.7643,132.84,132.8,47.1452]
[1725287899459,0.05069841,132.83,132.81,0.05697262]
[1725287904163,0.05069841,132.83,132.81,3.82177262]
[1725287904468,0.05069841,132.83,132.81,43.43697262]
[1725287904766,0.05069841,132.83,132.82,3.7646]
[1725287905166,0.05069841,132.83,132.81,0.05697262]
[1725287907267,3.7646,132.82,132.81,0.05697262]
[1725287910065,36.19069841,132.83,132.65,7.5389]
[1725287910363,1.3715,132.81,132.73,36.14]
[1725287910568,1.3715,132.81,132.73,39.907]
[1725287910785,10.53653992,132.86,132.73,36.14]
[1725287910963,0.05116531,132.81,132.78,0.05808543]
[1725287911167,0.05116531,132.81,132.78,0.04878043]
[1725287911871,3.7655,132.79,132.78,0.04878043]
[1725287912062,0.05116531,132.81,132.78,0.04878043]
[1725287913868,0.05116531,132.81,132.79,36.14]
[1725287916171,0.05116531,132.81,132.78,0.04878043]
[1725287916478,3.81616531,132.81,132.78,0.04878043]
[1725287916675,0.05116531,132.81,132.78,0.04878043]
[1725287916971,3.81626531,132.81,132.78,0.04878043]
[1725287917366,0.05116531,132.81,132.78,0.04878043]
[1725287918776,0.05116531,132.81,132.78,3.81438043]
[1725287918978,0.05116531,132.81,132.78,0.04878043]
[1725287919771,0.05116531,132.81,132.79,36.14]
[1725287919978,0.05116531,132.81,132.8,3.7652]
[1725287920473,1.3731,132.88,132.79,36.14]
[1725287920673,1.3304,132.87,132.79,36.14]
[1725287921475,1.3304,132.87,132.82,0.05363051]
[1725287921476,0.04756107,132.84,132.82,0.05363051]
[1725287921870,0.04756107,132.84,132.83,3.7643]
[1725287923371,1.378,132.9,132.89,3.7626]
[1725287923681,5.18465562,132.9,132.89,3.7626]
[1725287923877,1.378,132.9,132.89,3.7626]
[1725287924480,1.378,132.9,132.88,3.81479052]
[1725287924481,5.07473241,132.9,132.88,3.81479052]
[1725287924676,1.378,132.9,132.88,0.05199052]
[1725287925180,5.12856467,132.9,132.88,0.05199052]
[1725287925971,5.12856467,132.9,132.89,3.7626]
[1725287926173,0.05448751,132.91,132.88,0.05199052]
[1725287926374,3.82725583,132.91,132.88,0.05199052]
[1725287926769,3.82725583,132.91,132.89,3.7626]
[1725287926970,3.82725583,132.91,132.88,0.05199052]
[1725287927271,3.7631,132.88,132.83,3.7641]
[1725287927475,3.7631,132.88,132.66,36.14]
[1725287927476,36.14,132.88,132.77,1.3683]
[1725287927675,36.14,132.88,132.77,37.5083]
[1725287928282,0.05497297,132.84,132.81,0.05341488]
[1725287928782,0.05497297,132.84,132.83,3.7643]
[1725287929174,0.05497297,132.84,132.81,36.19341488]
[1725287929581,0.05497297,132.84,132.82,3.7645]
[1725287929980,0.05497297,132.84,132.81,36.19341488]
[1725287930284,3.79508947,132.84,132.81,0.05341488]
[1725287930480,0.05497297,132.84,132.81,0.05341488]
[1725287931181,0.05497297,132.84,132.83,3.7643]
[1725287932377,0.05497297,132.84,132.83,39.9043]
[1725287933380,0.05497297,132.84,132.82,3.7645]
[1725287933582,0.05497297,132.84,132.81,36.19341488]
[1725287933989,0.05497297,132.84,132.82,3.7646]
[1725287934280,0.05497297,132.84,132.81,36.19341488]
[1725287936091,0.05497297,132.84,132.81,0.05341488]
[1725287937082,3.81917297,132.84,132.81,3.81821488]
[1725287939089,0.05497297,132.84,132.82,3.7646]
[1725287939383,36.14,132.95,132.83,36.14]
[1725287939587,2.8472,132.93,132.83,36.14]
[1725287939786,3.7624,132.9,132.86,3.7635]
[1725287939984,6.66976094,132.93,132.83,36.14]
[1725287940183,0.05465821,132.89,132.87,0.05542274]
[1725287942396,0.05465821,132.89,132.87,3.81842274]
[1725287942789,3.81755821,132.89,132.87,0.05542274]
[1725287943283,3.81755821,132.89,132.83,36.14]
[1725287943284,0.05465821,132.89,132.83,36.14]
[1725287943486,42.80976094,132.93,132.81,36.14]
[1725287943688,3.7627,132.89,132.86,3.7634]
[1725287943886,6.66342516,132.93,132.83,36.14]
[1725287944084,2.8472,132.93,132.83,36.14]
[1725287944287,3.81223076,132.89,132.87,0.04894961]
[1725287944493,3.77295304,132.88,132.87,0.04894961]
[1725287944797,7.53585304,132.88,132.87,0.04894961]
[1725287944992,3.7629,132.88,132.84,3.7639]
[1725287945691,3.66955212,132.87,132.84,3.7639]
[1725287945899,3.72659706,132.87,132.85,3.7638]
[1725287946295,3.72659706,132.87,132.84,0.05652699]
[1725287946797,1.3973,132.86,132.84,0.05652699]
[1725287947593,1.3973,132.86,132.78,3.7656]
[1725287948207,37.5373,132.86,132.76,36.14]
[1725287948506,36.14,132.84,132.74,36.14]
[1725287948701,36.14,132.81,132.72,36.14]
[1725287948887,36.14,132.81,132.61,1.0]
[1725287948888,36.14,132.79,132.7,36.14]
[1725287949195,3.82391192,132.76,132.75,0.04931225]
[1725287949494,3.90862752,132.76,132.62,1.3576]
[1725287949697,3.90862752,132.76,132.57,6.1755028]
[1725287949698,36.14,132.7,132.57,6.1755028]
[1725287949994,36.14,132.68,132.57,1.4646]
[1725287950189,150.56,132.78,132.62,36.14]
[1725287950390,0.05542465,132.71,132.69,36.19089458]
[1725287950591,0.05384612,132.71,132.69,36.19443663]
[1725287950792,1.4537,132.77,132.69,36.19443663]
[1725287951000,1.4537,132.77,132.71,36.14]
[1725287951188,17.41240866,132.77,132.71,36.14]
[1725287951390,15.95870866,132.77,132.71,36.14]
[1725287951895,0.05336169,132.75,132.73,0.05509745]
[1725287952993,12.25032461,132.87,132.73,36.19509745]
[1725287953195,36.14,132.85,132.73,36.14]
[1725287953395,36.14,132.85,132.74,3.7667]
[1725287953396,3.7651,132.81,132.74,3.7667]
[1725287953697,3.7651,132.81,132.73,36.14]
[1725287953698,7.55729409,132.81,132.73,36.14]
[1725287953893,3.7651,132.81,132.73,36.14]
[1725287954092,0.0568682,132.78,132.76,0.05121052]
[1725287954295,0.05484179,132.78,132.76,0.05521827]
[1725287955104,0.05484179,132.78,132.77,36.14]
[1725287955401,0.05484179,132.78,132.76,0.05521827]
[1725287957504,3.766,132.77,132.76,0.05521827]
[1725287959099,36.14,132.81,132.7,39.9079]
[1725287959301,1.4401,132.77,132.7,39.9079]
[1725287959806,3.7667,132.75,132.7,39.9079]
[1725287960004,0.05005793,132.74,132.71,0.05033012]
[1725287960208,3.81715793,132.74,132.71,0.05033012]
[1725287960706,0.05005793,132.74,132.71,0.05033012]
[1725287961404,3.81715793,132.74,132.71,0.05033012]
[1725287961607,0.05005793,132.74,132.71,0.05033012]
[1725287962501,0.05005793,132.74,132.65,3.7692]
[1725287962703,36.14,132.73,132.63,36.14]
[1725287963105,3.7684,132.69,132.64,3.7696]
[1725287963321,36.14,132.71,132.6,36.14]
[1725287963611,3.82651767,132.67,132.64,0.05404586]
[1725287963811,0.05731767,132.67,132.64,0.05404586]
[1725287964311,3.7697,132.65,132.6,3.7707]
[1725287964508,3.7697,132.65,132.58,36.14]
[1725287965012,7.46711274,132.66,132.58,36.14]
[1725287965315,3.7692,132.66,132.6,36.14]
[1725287965506,0.055098,132.63,132.61,0.04310241]
[1725287965700,0.055098,132.63,132.62,3.7703]
[1725287965901,0.055098,132.63,132.62,36.14]
[1725287966108,2.8709,132.7,132.64,3.7696]
[1725287966516,3.7684,132.69,132.64,39.9096]
[1725287966910,3.7686,132.68,132.64,36.14]
[1725287967209,0.05779528,132.67,132.65,0.04939987]
[1725287968111,3.7692,132.66,132.65,0.04939987]
[1725287968307,0.05779528,132.67,132.65,0.04939987]
[1725287968511,3.82689528,132.67,132.65,0.04939987]
[1725287968710,0.05779528,132.67,132.65,0.04939987]
[1725287969107,3.7692,132.66,132.65,0.04939987]
[1725287970412,3.7696,132.65,132.6,39.9109]
[1725287970711,36.14,132.67,132.61,3.7706]
[1725287970916,3.7698,132.64,132.58,36.14]
[1725287971326,0.05586826,132.62,132.59,3.7711]
[1725287971610,0.05586826,132.62,132.6,0.04880054]
[1725287972015,0.05586826,132.62,132.6,3.81950054]
[1725287972207,0.05586826,132.62,132.6,36.18880054]
[1725287972407,1.3882,132.69,132.64,3.7697]
[1725287972608,1.3882,132.69,132.62,36.14]
[1725287973006,1.3882,132.69,132.65,3.7692]
[1725287973411,0.05441924,132.68,132.66,0.0519983]
[1725287974121,0.05441924,132.68,132.66,3.8210983]
[1725287975011,0.05441924,132.68,132.67,3.7689]
[1725287975419,0.05441924,132.68,132.66,0.0519983]
[1725287975613,0.05441924,132.68,132.66,3.8210983]
[1725287976213,0.05441924,132.68,132.67,3.7689]
[1725287976815,3.70721524,132.75,132.72,3.7675]
[1725287977013,4.1363,132.78,132.69,36.14]
[1725287977621,7.97959096,132.78,132.69,36.14]
[1725287977823,3.7671,132.74,132.72,0.04830803]
[1725287978124,0.05471945,132.75,132.72,0.04830803]
[1725287978337,3.7672,132.73,132.72,0.04830803]
[1725287978738,36.14,132.75,132.67,3.7687]
[1725287978929,3.7676,132.72,132.67,3.7687]
[1725287979132,3.77053526,132.71,132.67,3.7687]
[1725287979331,36.14,132.75,132.67,3.7687]
[1725287979524,3.7679,132.71,132.66,3.7691]
[1725287979725,3.91888629,132.7,132.67,0.05236947]
[1725287980638,3.7685,132.69,132.67,0.05236947]
[1725287981038,3.91888629,132.7,132.61,36.14]
[1725287981238,2.7723,132.69,132.61,36.14]
[1725287981437,3.769,132.67,132.62,3.7702]
[1725287981639,3.69186703,132.67,132.58,186.86]
[1725287981838,3.7693,132.66,132.61,3.7706]
[1725287982037,3.68282203,132.65,132.61,3.7706]
[1725287982232,38.9123,132.69,132.58,186.86]
[1725287982438,0.05236342,132.64,132.59,3.771]
[1725287982742,0.05236342,132.64,132.62,0.05048464]
[1725287983140,3.82236342,132.64,132.62,0.05048464]
[1725287983339,0.05236342,132.64,132.62,0.05048464]
[1725287984544,3.82226342,132.64,132.62,0.05048464]
[1725287985138,3.77,132.63,132.62,0.05048464]
[1725287985345,0.05236342,132.64,132.62,0.05048464]
[1725287985939,0.05236342,132.64,132.56,36.14]
[1725287986250,3.78194015,132.65,132.58,36.14]
[1725287986438,38.9123,132.69,132.58,36.14]
[1725287986640,42.75636575,132.69,132.6,36.14]
[1725287986949,42.75636575,132.69,132.54,1.4629]
[1725287987142,36.14,132.65,132.55,36.14]
[1725287987445,3.7705,132.62,132.55,36.14]
[1725287987644,0.04803087,132.6,132.55,36.14]
[1725287989443,0.04803087,132.6,132.57,3.7715]
[1725287989649,0.04803087,132.6,132.57,36.14]
[1725287990352,0.04803087,132.6,132.55,36.14]
[1725287990648,3.81893087,132.6,132.56,3.7719]
[1725287991152,0.04803087,132.6,132.55,3.7722]
[1725287991354,0.04803087,132.6,132.53,36.14]
[1725287992346,3.7712,132.59,132.53,36.14]
[1725287992648,0.04803087,132.6,132.55,36.14]
[1725287993350,3.7706,132.61,132.57,3.7717]
[1725287993547,0.05624701,132.59,132.57,36.14]
[1725287993850,3.7697,132.65,132.57,36.14]
[1725287994052,37.5736,132.67,132.57,36.14]
[1725287994548,37.5736,132.67,132.6,3.7707]
[1725287994748,0.05530491,132.65,132.62,0.05058337]
[1725287994947,3.77,132.63,132.62,0.05058337]
[1725287996354,3.75857907,132.62,132.53,36.14]
[1725287996653,36.14,132.66,132.55,36.14]
[1725287996856,36.14,132.66,132.58,3.7712]
[1725287997452,3.82674821,132.63,132.59,3.7711]
[1725287997757,0.05644821,132.63,132.57,36.14]
[1725287997957,0.0558645,132.61,132.59,3.771]
[1725287998160,0.05499975,132.61,132.59,3.771]
[1725287998351,0.05499975,132.61,132.57,36.14]
[1725287998657,0.05499975,132.61,132.59,3.771]
[1725287999753,0.05499975,132.61,132.57,36.14]
[1725287999958,0.05499975,132.61,132.55,36.14]
[1725288000156,3.85897435,132.62,132.55,36.14]
[1725288000157,0.04875271,132.59,132.55,36.14]
[1725288000459,0.04875271,132.59,132.57,3.7717]
[1725288000854,0.04875271,132.59,132.53,36.14]
[1725288001258,0.04875271,132.59,132.55,36.14]
[1725288001459,0.04875271,132.59,132.58,3.7714]
[1725288001850,7.6301285,132.62,132.55,36.14]
[1725288002049,1.4336,132.67,132.6,36.14]
[1725288002458,0.05421019,132.6,132.51,2.6309]
[1725288002661,3.74660633,132.6,132.51,36.14]
[1725288002966,37.5736,132.67,132.51,3.7734]
[1725288002967,0.05416574,132.57,132.51,3.7734]
[1725288003158,0.050279,132.55,132.49,36.14]
[1725288003358,0.050279,132.55,132.47,36.14]
[1725288003558,0.04878263,132.52,132.49,3.7738]
[1725288003860,0.05557294,132.52,132.49,3.7738]
[1725288004257,3.82877294,132.52,132.48,3.7742]
[1725288004860,0.05557294,132.52,132.48,3.7742]
[1725288005055,3.7736,132.51,132.47,39.9145]
[1725288005457,0.05557294,132.52,132.47,36.14]
[1725288005662,0.05557294,132.52,132.49,3.7738]
[1725288006454,3.82877294,132.52,132.47,36.14]
[1725288006659,0.05557294,132.52,132.47,36.14]
[1725288007468,40.3205,132.59,132.45,3.69707946]
[1725288007469,4.1805,132.59,132.51,36.14]
[1725288007962,36.14,132.63,132.54,36.14]
[1725288008171,3.7715,132.58,132.54,36.14]
[1725288008561,3.7715,132.58,132.55,0.0557444]
[1725288008761,0.05286817,132.57,132.55,0.0557444]
[1725288009362,7.45587291,132.56,132.55,0.0557444]
[1725288009569,0.05286817,132.57,132.55,0.0557444]
[1725288009873,3.74881564,132.57,132.55,0.0557444]
[1725288010267,0.05286817,132.57,132.55,0.0557444]
[1725288011676,0.05286817,132.57,132.56,3.772]
[1725288011861,0.05286817,132.57,132.55,0.0557444]
[1725288013071,0.05286817,132.57,132.4,43.6927]
[1725288013375,0.05286817,132.57,132.41,4.1805]
[1725288013376,36.14,132.57,132.41,4.1805]
[1725288013864,3.7731,132.53,132.48,3.7741]
[1725288014063,0.04886972,132.52,132.48,3.7741]
[1725288014370,0.04886972,132.52,132.41,4.1805]
[1725288014573,3.74688796,132.51,132.46,39.9147]
[1725288015071,2.798,132.59,132.5,36.14]
[1725288015276,2.798,132.59,132.54,36.14]
[1725288015569,6.5693,132.59,132.54,36.14]
[1725288015778,3.78678274,132.61,132.54,36.14]
[1725288015982,3.78678274,132.61,132.56,3.772]
[1725288016183,0.05055834,132.6,132.57,0.05045523]
[1725288016471,3.7713,132.59,132.57,0.05495132]
[1725288016671,0.04973614,132.6,132.57,0.05495132]
[1725288017076,0.04973614,132.6,132.57,3.82655132]
[1725288017276,0.04973614,132.6,132.57,0.05495132]
[1725288018474,3.7714,132.58,132.57,0.05495132]
[1725288019177,3.7713,132.59,132.57,0.05495132]
[1725288019379,0.04973614,132.6,132.57,0.05495132]
[1725288020178,3.7714,132.58,132.57,0.05495132]
[1725288020482,36.14,132.6,132.49,2.742]
[1725288020666,36.14,132.57,132.42,7.5518]
[1725288020867,36.14,132.57,132.46,36.14]
[1725288020868,1.4415,132.56,132.46,36.14]
[1725288021075,3.71831623,132.55,132.46,36.14]
[1725288021268,1.4415,132.56,132.45,3.81827097]
[1725288021472,0.05753409,132.52,132.49,36.14]
[1725288021676,0.05753409,132.52,132.47,36.14]
[1725288021872,0.05447589,132.51,132.47,36.14]
[1725288022072,0.05447589,132.51,132.48,3.7742]
[1725288022278,3.82787589,132.51,132.45,36.14]
[1725288022668,0.05447589,132.51,132.47,3.7744]
[1725288022871,0.05698547,132.5,132.47,3.7744]
[1725288023078,0.05698547,132.5,132.45,36.14]
[1725288023267,0.05698547,132.5,132.38,3.8597285]
[1725288023268,3.775,132.46,132.38,3.8597285]
[1725288023467,36.19698547,132.5,132.38,3.8597285]
[1725288023468,0.05471947,132.43,132.38,4.138]
[1725288023673,0.05471947,132.43,132.4,3.7764]
[1725288024283,0.05471947,132.43,132.41,3.7761]
[1725288025380,0.05471947,132.43,132.4,3.7765]
[1725288025873,0.05471947,132.43,132.36,36.14]
[1725288026069,0.0480274,132.41,132.36,36.14]
[1725288026271,3.7768,132.4,132.36,39.9176]
[1725288026477,0.0480274,132.41,132.36,36.14]
[1725288027282,0.0480274,132.41,132.38,36.14]
[1725288027478,0.0480274,132.41,132.34,1.3501]
[1725288027783,0.0480274,132.41,132.35,36.14]
[1725288027981,3.7767,132.4,132.36,3.7775]
[1725288028680,0.0480274,132.41,132.33,36.14]
[1725288028880,0.04956336,132.38,132.33,36.14]
[1725288029482,0.04956336,132.38,132.32,37.5237]
[1725288029678,0.04956336,132.38,132.32,36.14]
[1725288030174,0.04956336,132.38,132.31,1.4257]
[1725288030175,3.7782,132.35,132.31,39.919]
[1725288030378,0.05080868,132.34,132.27,1.3295]
[1725288030686,0.05080868,132.34,132.28,36.14]
[1725288030874,0.05080868,132.34,132.25,2.8161]
[1725288031080,0.05736088,132.31,132.24,36.14]
[1725288031271,36.14,132.34,132.24,36.14]
[1725288031272,0.04881907,132.29,132.24,36.14]
[1725288031482,0.04881907,132.29,132.26,36.14]
[1725288031985,0.04881907,132.29,132.28,3.78]
[1725288032189,0.04881907,132.29,132.28,39.92]
[1725288032382,39.89717326,132.4,132.28,36.14]
[1725288032685,4.243,132.41,132.33,36.14]
[1725288033081,36.14,132.4,132.32,3.7788]
[1725288033486,36.14,132.4,132.35,0.05681766]
[1725288033487,3.83190516,132.37,132.35,0.05681766]
[1725288034078,3.7777,132.36,132.35,0.05681766]
[1725288034884,0.05420516,132.37,132.35,0.05681766]
[1725288035991,0.05420516,132.37,132.36,3.7777]
[1725288036881,4.1534,132.45,132.39,3.7768]
[1725288037086,4.1534,132.45,132.37,36.14]
[1725288037683,4.1534,132.45,132.35,36.14]
[1725288037890,0.055788,132.41,132.39,0.05787981]
[1725288038791,3.832088,132.41,132.39,0.05787981]
[1725288039090,0.055788,132.41,132.39,0.05787981]
[1725288039294,3.7766,132.4,132.39,0.05787981]
[1725288039691,36.14,132.42,132.31,36.14]
[1725288040087,3.7771,132.39,132.34,3.7782]
[1725288040585,36.14,132.42,132.33,36.14]
[1725288040791,0.04843402,132.38,132.35,3.83094301]
[1725288041401,0.04843402,132.38,132.35,0.05314301]
[1725288041589,0.04843402,132.38,132.35,36.19314301]
[1725288041794,0.04843402,132.38,132.37,3.7774]
[1725288042303,3.82573402,132.38,132.35,0.05314301]
[1725288042799,0.04843402,132.38,132.36,3.7777]
[1725288042999,0.04843402,132.38,132.35,0.05314301]
[1725288043393,0.04843402,132.38,132.37,3.7774]
[1725288043691,10.53653992,132.6,132.42,36.14]
[1725288043995,36.14,132.53,132.44,36.14]
[1725288044194,36.14,132.51,132.43,1.3325]
[1725288044492,0.04902905,132.48,132.46,0.05429239]
[1725288045287,0.04902905,132.48,132.46,3.82889239]
[1725288045485,0.04902905,132.48,132.46,0.05429239]
[1725288047495,0.04902905,132.48,132.4,36.14]
[1725288047695,1.3867,132.48,132.4,36.14]
[1725288048094,3.775,132.46,132.41,3.7761]
[1725288048496,1.3867,132.48,132.4,36.14]
[1725288048802,0.05297454,132.45,132.43,0.04728464]
[1725288050702,3.82817454,132.45,132.43,0.04728464]
[1725288050898,0.05297454,132.45,132.43,0.04728464]
[1725288052404,3.72261961,132.44,132.43,0.04728464]
[1725288052597,0.05297454,132.45,132.43,0.04728464]
[1725288053004,3.76113729,132.44,132.43,0.04728464]
[1725288053402,0.05297454,132.45,132.43,0.04728464]
[1725288053607,3.776,132.43,132.38,39.917]
[1725288053800,7.52996243,132.43,132.38,39.917]
[1725288054206,3.75396243,132.43,132.38,3.777]
[1725288054411,1.4393,132.46,132.38,3.777]
[1725288054810,0.05176767,132.43,132.38,3.777]
[1725288055011,3.78163003,132.42,132.38,3.777]
[1725288055207,0.05176767,132.43,132.39,3.7768]
[1725288055512,0.05176767,132.43,132.35,36.14]
[1725288055718,0.04864975,132.4,132.37,3.7772]
[1725288056010,0.04864975,132.4,132.35,36.14]
[1725288056615,0.04864975,132.4,132.37,36.14]
[1725288056818,0.04864975,132.4,132.33,36.14]
[1725288056819,0.04864975,132.4,132.39,36.14]
[1725288057123,0.04963871,132.41,132.4,3.7765]
[1725288057416,0.04963871,132.41,132.39,36.14]
[1725288057808,1.4094,132.47,132.39,36.14]
[1725288058005,1.3463,132.5,132.41,36.14]
[1725288058207,1.3463,132.5,132.42,3.7759]
[1725288058417,3.775,132.46,132.42,3.7759]
[1725288058814,0.05462754,132.45,132.43,0.04963871]
[1725288059420,0.05462754,132.45,132.43,3.82533871]
[1725288060614,0.05462754,132.45,132.44,39.9154]
[1725288061318,0.05462754,132.45,132.43,0.04963871]
[1725288061912,0.05462754,132.45,132.43,3.82513871]
[1725288062315,0.05462754,132.45,132.43,0.04963871]
[1725288063212,3.71045028,132.44,132.43,0.04963871]
[1725288064015,3.7754,132.44,132.43,0.04963871]
[1725288064222,3.68326749,132.44,132.38,36.14]
[1725288064415,3.7762,132.42,132.38,36.14]
[1725288064608,5.15348338,132.44,132.38,36.14]
[1725288064812,1.388,132.44,132.36,36.14]
[1725288065110,36.14,132.43,132.32,36.14]
[1725288065613,36.14,132.43,132.33,3.7784]
[1725288065821,39.96741691,132.43,132.33,3.7784]
[1725288066020,0.04850418,132.39,132.32,36.14]
[1725288066214,3.7779,132.36,132.32,36.14]
[1725288066518,0.05703238,132.35,132.31,3.7791]
[1725288066919,3.83503238,132.35,132.31,3.7791]
[1725288067219,0.05703238,132.35,132.3,36.14]
[1725288067522,0.05703238,132.35,132.31,36.14]
[1725288067825,3.82741691,132.43,132.35,36.14]
[1725288068012,3.7759,132.43,132.38,36.14]
[1725288068318,1.388,132.44,132.38,36.14]
[1725288068717,3.7759,132.43,132.38,36.14]
[1725288068921,7.57162249,132.43,132.38,39.917]
[1725288069213,0.05556914,132.42,132.4,0.05179513]
[1725288071018,3.7763,132.41,132.4,0.05179513]